[Event "Titled Tuesday Blitz August 15 Late 2023"]
[White "Veiga, Jose Francisco R P Neves"]
[Black "Szente Varga, Fruzsina"]
[WhiteFideId "1930087"]
[BlackFideId "712264"]
[WhiteElo "2660"]
[BlackElo "2320"]
[Result "1-0"]
[Round "3"]
[TimeControl "180+1"]
[Date "2023.08.15"]
[WhiteClock "0:01:33"]
[BlackClock "0:00:18"]
[Board "51"]

1. c4 {[%clk 0:03:00]}  e5 {[%clk 0:02:58]} 2. Nc3 {[%clk 0:03:00]}  f5 {[%clk 0:02:58]} 3. d4 {[%clk 0:02:51]}  e4 {[%clk 0:02:58]} 4. g3 {[%clk 0:02:50]}  Nf6 {[%clk 0:02:50]} 5. Bh3 {[%clk 0:02:41]}  d6 {[%clk 0:02:50]} 6. f3 {[%clk 0:02:41]}  Qe7 {[%clk 0:02:19]} 7. fxe4 {[%clk 0:02:39]}  Nxe4 {[%clk 0:02:19]} 8. Nf3 {[%clk 0:02:38]}  c6 {[%clk 0:02:13]} 9. O-O {[%clk 0:02:30]}  g6 {[%clk 0:02:12]} 10. Nxe4 {[%clk 0:02:29]}  Qxe4 {[%clk 0:02:11]} 11. Bf4 {[%clk 0:02:28]}  Nd7 {[%clk 0:01:54]} 12. Ng5 {[%clk 0:02:26]}  Qe7 {[%clk 0:01:53]} 13. e4 {[%clk 0:02:26]}  h6 {[%clk 0:01:35]} 14. exf5 {[%clk 0:02:25]}  hxg5 {[%clk 0:01:33]} 15. Re1 {[%clk 0:02:25]}  gxf4 {[%clk 0:01:24]} 16. Rxe7+ {[%clk 0:02:24]}  Bxe7 {[%clk 0:01:25]} 17. Qg4 {[%clk 0:02:21]}  gxf5 {[%clk 0:01:20]} 18. Qg6+ {[%clk 0:02:20]}  Kd8 {[%clk 0:01:17]} 19. Bxf5 {[%clk 0:02:19]}  fxg3 {[%clk 0:01:15]} 20. hxg3 {[%clk 0:02:17]}  Bf6 {[%clk 0:01:14]} 21. Rd1 {[%clk 0:02:12]}  Be7 {[%clk 0:00:59]} 22. Re1 {[%clk 0:02:11]}  Bf6 {[%clk 0:00:56]} 23. Re4 {[%clk 0:02:05]}  Rf8 {[%clk 0:00:47]} 24. g4 {[%clk 0:01:58]}  c5 {[%clk 0:00:47]} 25. Kg2 {[%clk 0:01:53]}  Bxd4 {[%clk 0:00:41]} 26. Qxd6 {[%clk 0:01:52]}  Rf6 {[%clk 0:00:37]} 27. Qe7+ {[%clk 0:01:42]}  Kc7 {[%clk 0:00:37]} 28. Rxd4 {[%clk 0:01:38]}  cxd4 {[%clk 0:00:37]} 29. Bxd7 {[%clk 0:01:37]}  Bxd7 {[%clk 0:00:34]} 30. Qxf6 {[%clk 0:01:37]}  Bc6+ {[%clk 0:00:28]} 31. Kg3 {[%clk 0:01:37]}  Rd8 {[%clk 0:00:28]} 32. Qe5+ {[%clk 0:01:35]}  Kc8 {[%clk 0:00:20]} 33. Qe6+ {[%clk 0:01:34]}  Kc7 {[%clk 0:00:20]} 34. Qe7+ {[%clk 0:01:34]}  Rd7 {[%clk 0:00:20]} 35. Qe5+ {[%clk 0:01:35]}  Kc8 {[%clk 0:00:20]} 36. Qe2 {[%clk 0:01:32]}  d3 {[%clk 0:00:21]} 37. Qd2 {[%clk 0:01:32]}  Be4 {[%clk 0:00:20]} 38. Kf4 {[%clk 0:01:33]}  Bg6 {[%clk 0:00:20]} 39. Kg5 {[%clk 0:01:33]}  Be4 {[%clk 0:00:21]} 40. Kf6 {[%clk 0:01:32]}  Rd6+ {[%clk 0:00:20]} 41. Ke5 {[%clk 0:01:32]}  Kd7 {[%clk 0:00:19]} 42. Kxe4 {[%clk 0:01:32]}  Rg6 {[%clk 0:00:19]} 43. Qxd3+ {[%clk 0:01:32]}  Kc7 {[%clk 0:00:20]} 44. Kf5 {[%clk 0:01:32]}  Rd6 {[%clk 0:00:19]} 45. Qxd6+ {[%clk 0:01:32]}  Kxd6 {[%clk 0:00:18]} 46. g5 {[%clk 0:01:33]} 1-0


[Site "https://www.chess.com"]

[Event "Titled Tuesday Blitz August 15 Late 2023"]
[White "Vasques, Antonio Pedro Freixial"]
[Black "Nefedov, Sergey"]
[WhiteFideId "1908332"]
[BlackFideId "24113417"]
[WhiteElo "2381"]
[BlackElo "2637"]
[Result "1-0"]
[Round "3"]
[TimeControl "180+1"]
[Date "2023.08.15"]
[WhiteClock "0:00:26"]
[BlackClock "0:00:52"]
[Board "52"]

1. e4 {[%clk 0:03:00]}  d5 {[%clk 0:02:59]} 2. exd5 {[%clk 0:03:00]}  Qxd5 {[%clk 0:03:00]} 3. Nc3 {[%clk 0:03:01]}  Qd8 {[%clk 0:02:59]} 4. d4 {[%clk 0:02:59]}  Nf6 {[%clk 0:02:59]} 5. Bc4 {[%clk 0:02:58]}  c6 {[%clk 0:02:59]} 6. Nf3 {[%clk 0:02:58]}  Nd5 {[%clk 0:02:58]} 7. Bd2 {[%clk 0:02:50]}  Bg4 {[%clk 0:02:57]} 8. h3 {[%clk 0:02:48]}  Bh5 {[%clk 0:02:57]} 9. g4 {[%clk 0:02:44]}  Bg6 {[%clk 0:02:57]} 10. Ne5 {[%clk 0:02:44]}  e6 {[%clk 0:02:56]} 11. Qe2 {[%clk 0:02:39]}  Be7 {[%clk 0:02:40]} 12. O-O-O {[%clk 0:02:36]}  Nd7 {[%clk 0:02:26]} 13. Nxd5 {[%clk 0:02:17]}  exd5 {[%clk 0:02:24]} 14. Bd3 {[%clk 0:02:04]}  Bxd3 {[%clk 0:02:18]} 15. Qxd3 {[%clk 0:02:04]}  Nxe5 {[%clk 0:02:12]} 16. dxe5 {[%clk 0:02:05]}  Qd7 {[%clk 0:02:01]} 17. f4 {[%clk 0:01:57]}  O-O-O {[%clk 0:02:01]} 18. f5 {[%clk 0:01:58]}  Bc5 {[%clk 0:01:50]} 19. Bf4 {[%clk 0:01:56]}  Rde8 {[%clk 0:01:49]} 20. Rde1 {[%clk 0:01:50]}  d4 {[%clk 0:01:48]} 21. Re4 {[%clk 0:01:46]}  Qd5 {[%clk 0:01:47]} 22. Kb1 {[%clk 0:01:43]}  h5 {[%clk 0:01:47]} 23. g5 {[%clk 0:01:37]}  g6 {[%clk 0:01:44]} 24. fxg6 {[%clk 0:01:33]}  fxg6 {[%clk 0:01:45]} 25. Rhe1 {[%clk 0:01:31]}  Re6 {[%clk 0:01:46]} 26. Bc1 {[%clk 0:01:07]}  Rf8 {[%clk 0:01:45]} 27. Rf4 {[%clk 0:01:05]}  Rxf4 {[%clk 0:01:42]} 28. Bxf4 {[%clk 0:01:05]}  Bb6 {[%clk 0:01:40]} 29. Rf1 {[%clk 0:01:00]}  c5 {[%clk 0:01:40]} 30. Bg3 {[%clk 0:00:51]}  c4 {[%clk 0:01:35]} 31. Qa3 {[%clk 0:00:36]}  Bc5 {[%clk 0:01:31]} 32. Qa5 {[%clk 0:00:33]}  d3 {[%clk 0:01:30]} 33. Rf8+ {[%clk 0:00:31]}  Kd7 {[%clk 0:01:12]} 34. Rd8+ {[%clk 0:00:31]}  Kc6 {[%clk 0:01:12]} 35. Qa4+ {[%clk 0:00:25]}  b5 {[%clk 0:01:10]} 36. Qa6+ {[%clk 0:00:25]}  Kc7 {[%clk 0:01:02]} 37. Qc8+ {[%clk 0:00:25]}  Kb6 {[%clk 0:00:52]} 38. Rxd5 {[%clk 0:00:26]} 1-0


[Site "https://www.chess.com"]

[Event "Titled Tuesday Blitz August 15 Late 2023"]
[White "Bullen, Alex"]
[Black "Shimanov, Aleksandr"]
[WhiteFideId "1801627"]
[BlackFideId "4198603"]
[WhiteElo "2318"]
[BlackElo "3032"]
[Result "0-1"]
[Round "3"]
[TimeControl "180+1"]
[Date "2023.08.15"]
[WhiteClock "0:00:00"]
[BlackClock "0:01:11"]
[Board "53"]

1. d4 {[%clk 0:02:57]}  d5 {[%clk 0:02:58]} 2. Nf3 {[%clk 0:02:57]}  e6 {[%clk 0:02:55]} 3. c4 {[%clk 0:02:57]}  Nf6 {[%clk 0:02:55]} 4. g3 {[%clk 0:02:56]}  dxc4 {[%clk 0:02:52]} 5. Bg2 {[%clk 0:02:56]}  Nbd7 {[%clk 0:02:52]} 6. O-O {[%clk 0:02:55]}  c6 {[%clk 0:02:52]} 7. Nbd2 {[%clk 0:02:47]}  b5 {[%clk 0:02:50]} 8. a4 {[%clk 0:02:47]}  Bb7 {[%clk 0:02:49]} 9. Ne5 {[%clk 0:02:42]}  Qb6 {[%clk 0:02:48]} 10. e3 {[%clk 0:02:28]}  Be7 {[%clk 0:02:46]} 11. Qc2 {[%clk 0:02:18]}  Nxe5 {[%clk 0:02:36]} 12. dxe5 {[%clk 0:02:17]}  Nd7 {[%clk 0:02:37]} 13. Qc3 {[%clk 0:02:06]}  a5 {[%clk 0:02:25]} 14. axb5 {[%clk 0:01:54]}  cxb5 {[%clk 0:02:24]} 15. Bxb7 {[%clk 0:01:53]}  Qxb7 {[%clk 0:02:25]} 16. Rxa5 {[%clk 0:01:51]}  Rxa5 {[%clk 0:02:26]} 17. Qxa5 {[%clk 0:01:51]}  Nxe5 {[%clk 0:02:25]} 18. e4 {[%clk 0:01:45]}  O-O {[%clk 0:02:24]} 19. Re1 {[%clk 0:01:33]}  Bc5 {[%clk 0:02:23]} 20. b3 {[%clk 0:01:25]}  Nd3 {[%clk 0:02:20]} 21. Rf1 {[%clk 0:01:20]}  Bb4 {[%clk 0:02:17]} 22. Qa1 {[%clk 0:01:13]}  c3 {[%clk 0:02:17]} 23. Nf3 {[%clk 0:01:09]}  Qxe4 {[%clk 0:02:17]} 24. Ng5 {[%clk 0:00:58]}  Qe2 {[%clk 0:02:16]} 25. Qb1 {[%clk 0:00:56]}  h6 {[%clk 0:02:12]} 26. Nh3 {[%clk 0:00:52]}  c2 {[%clk 0:02:10]} 27. Qa1 {[%clk 0:00:49]}  Bc5 {[%clk 0:02:10]} 28. Bb2 {[%clk 0:00:42]}  Rd8 {[%clk 0:02:02]} 29. Bxg7 {[%clk 0:00:39]}  Nxf2 {[%clk 0:01:58]} 30. Nxf2 {[%clk 0:00:31]}  Rd1 {[%clk 0:01:55]} 31. Qa8+ {[%clk 0:00:08]}  Kxg7 {[%clk 0:01:54]} 32. Qe4 {[%clk 0:00:00]}  Qxe4 {[%clk 0:01:11]} 0-1


[Site "https://www.chess.com"]

[Event "Titled Tuesday Blitz August 15 Late 2023"]
[White "Zierk, Steven"]
[Black "Tomb, Maroun"]
[WhiteFideId "2034255"]
[BlackFideId "5300398"]
[WhiteElo "2873"]
[BlackElo "2490"]
[Result "1-0"]
[Round "3"]
[TimeControl "180+1"]
[Date "2023.08.15"]
[WhiteClock "0:01:03"]
[BlackClock "0:00:14"]
[Board "59"]

1. e4 {[%clk 0:03:00]}  c5 {[%clk 0:02:58]} 2. Nf3 {[%clk 0:03:01]}  e6 {[%clk 0:02:58]} 3. d4 {[%clk 0:03:01]}  cxd4 {[%clk 0:02:59]} 4. Nxd4 {[%clk 0:03:02]}  a6 {[%clk 0:03:00]} 5. c4 {[%clk 0:03:02]}  Qc7 {[%clk 0:02:58]} 6. Nc3 {[%clk 0:03:02]}  Nc6 {[%clk 0:02:58]} 7. Be2 {[%clk 0:02:59]}  Nxd4 {[%clk 0:02:57]} 8. Qxd4 {[%clk 0:02:59]}  Ne7 {[%clk 0:02:58]} 9. Be3 {[%clk 0:02:58]}  Nc6 {[%clk 0:02:58]} 10. Qd2 {[%clk 0:02:58]}  Be7 {[%clk 0:02:53]} 11. O-O {[%clk 0:02:56]}  O-O {[%clk 0:02:53]} 12. Na4 {[%clk 0:02:55]}  Ne5 {[%clk 0:02:26]} 13. Nb6 {[%clk 0:02:52]}  Rb8 {[%clk 0:02:21]} 14. f4 {[%clk 0:02:50]}  Ng6 {[%clk 0:01:38]} 15. b4 {[%clk 0:02:40]}  a5 {[%clk 0:01:19]} 16. bxa5 {[%clk 0:02:38]}  Bc5 {[%clk 0:01:19]} 17. Bxc5 {[%clk 0:02:23]}  Qxc5+ {[%clk 0:01:19]} 18. Kh1 {[%clk 0:02:23]}  d6 {[%clk 0:01:06]} 19. Rab1 {[%clk 0:02:10]}  e5 {[%clk 0:01:04]} 20. Rb5 {[%clk 0:02:03]}  Qc6 {[%clk 0:01:03]} 21. f5 {[%clk 0:02:02]}  Nf4 {[%clk 0:01:02]} 22. Bf3 {[%clk 0:02:01]}  g6 {[%clk 0:00:46]} 23. g3 {[%clk 0:01:57]}  Nh3 {[%clk 0:00:39]} 24. Bg2 {[%clk 0:01:10]}  gxf5 {[%clk 0:00:29]} 25. exf5 {[%clk 0:01:06]}  e4 {[%clk 0:00:29]} 26. Bxh3 {[%clk 0:01:06]}  e3+ {[%clk 0:00:29]} 27. Qd5 {[%clk 0:01:06]}  Re8 {[%clk 0:00:14]} 28. Re1 {[%clk 0:01:03]} 1-0


[Site "https://www.chess.com"]

[Event "Titled Tuesday Blitz August 15 Late 2023"]
[White "Kuzmicz, Krystian"]
[Black "Itkis, Boris"]
[WhiteFideId "1119125"]
[BlackFideId "1209167"]
[WhiteElo "2792"]
[BlackElo "2486"]
[Result "1-0"]
[Round "3"]
[TimeControl "180+1"]
[Date "2023.08.15"]
[WhiteClock "0:00:04"]
[BlackClock "0:00:00"]
[Board "61"]

1. e4 {[%clk 0:02:58]}  e6 {[%clk 0:02:59]} 2. b3 {[%clk 0:02:54]}  d5 {[%clk 0:03:00]} 3. Bb2 {[%clk 0:02:42]}  dxe4 {[%clk 0:02:59]} 4. Nc3 {[%clk 0:02:42]}  Nf6 {[%clk 0:02:38]} 5. Qe2 {[%clk 0:02:41]}  Nc6 {[%clk 0:02:32]} 6. O-O-O {[%clk 0:02:41]}  Nd4 {[%clk 0:02:30]} 7. Qe1 {[%clk 0:02:41]}  Be7 {[%clk 0:02:21]} 8. d3 {[%clk 0:02:41]}  exd3 {[%clk 0:02:18]} 9. Bxd3 {[%clk 0:02:40]}  c5 {[%clk 0:02:16]} 10. Nf3 {[%clk 0:02:34]}  Nxf3 {[%clk 0:02:06]} 11. gxf3 {[%clk 0:02:30]}  Qa5 {[%clk 0:01:52]} 12. Rg1 {[%clk 0:02:27]}  O-O {[%clk 0:01:50]} 13. Rxg7+ {[%clk 0:01:33]}  Kxg7 {[%clk 0:01:48]} 14. Qg1+ {[%clk 0:01:32]}  Kh8 {[%clk 0:01:16]} 15. Ne4 {[%clk 0:01:31]}  e5 {[%clk 0:01:16]} 16. Bxe5 {[%clk 0:01:26]}  Qb6 {[%clk 0:01:16]} 17. Qg5 {[%clk 0:01:16]}  Rg8 {[%clk 0:01:16]} 18. Qh4 {[%clk 0:00:52]}  Rg6 {[%clk 0:00:43]} 19. Ng5 {[%clk 0:00:51]}  Kg8 {[%clk 0:00:27]} 20. Bxg6 {[%clk 0:00:35]}  hxg6 {[%clk 0:00:27]} 21. Rd6 {[%clk 0:00:18]}  Qxd6 {[%clk 0:00:20]} 22. Bxd6 {[%clk 0:00:18]}  Bxd6 {[%clk 0:00:20]} 23. Qc4 {[%clk 0:00:15]}  Be6 {[%clk 0:00:06]} 24. Nxe6 {[%clk 0:00:14]}  Re8 {[%clk 0:00:06]} 25. Ng5 {[%clk 0:00:12]}  Re7 {[%clk 0:00:07]} 26. Ne4 {[%clk 0:00:10]}  Nxe4 {[%clk 0:00:06]} 27. fxe4 {[%clk 0:00:11]}  Kg7 {[%clk 0:00:06]} 28. h3 {[%clk 0:00:11]}  b6 {[%clk 0:00:06]} 29. f3 {[%clk 0:00:11]}  Be5 {[%clk 0:00:05]} 30. c3 {[%clk 0:00:10]}  Rd7 {[%clk 0:00:05]} 31. Kc2 {[%clk 0:00:11]}  Bf4 {[%clk 0:00:05]} 32. b4 {[%clk 0:00:07]}  Rd2+ {[%clk 0:00:04]} 33. Kb3 {[%clk 0:00:08]}  cxb4 {[%clk 0:00:05]} 34. Qxb4 {[%clk 0:00:08]}  Rf2 {[%clk 0:00:04]} 35. Qa4 {[%clk 0:00:06]}  Rxf3 {[%clk 0:00:03]} 36. Qxa7 {[%clk 0:00:06]}  Be5 {[%clk 0:00:03]} 37. Qxb6 {[%clk 0:00:06]}  Rxc3+ {[%clk 0:00:03]} 38. Kb4 {[%clk 0:00:06]}  Rxh3 {[%clk 0:00:04]} 39. a4 {[%clk 0:00:06]}  Rh4 {[%clk 0:00:04]} 40. Qc6 {[%clk 0:00:06]}  Rh3 {[%clk 0:00:02]} 41. a5 {[%clk 0:00:04]}  Bc3+ {[%clk 0:00:02]} 42. Ka4 {[%clk 0:00:04]}  Bxa5 {[%clk 0:00:02]} 43. Kxa5 {[%clk 0:00:04]}  g5 {[%clk 0:00:03]} 44. Qd5 {[%clk 0:00:04]}  Kg6 {[%clk 0:00:02]} 45. Qf5+ {[%clk 0:00:04]}  Kg7 {[%clk 0:00:00]} 46. Qxh3 {[%clk 0:00:04]} 1-0


[Site "https://www.chess.com"]

[Event "Titled Tuesday Blitz August 15 Late 2023"]
[White "Merino Garcia, Rafael II"]
[Black "Riehle, Marco"]
[WhiteFideId "2209128"]
[BlackFideId "12904392"]
[WhiteElo "2483"]
[BlackElo "2790"]
[Result "0-1"]
[Round "3"]
[TimeControl "180+1"]
[Date "2023.08.15"]
[WhiteClock "0:00:16"]
[BlackClock "0:01:50"]
[Board "62"]

1. d4 {[%clk 0:03:00]}  d5 {[%clk 0:02:58]} 2. Nf3 {[%clk 0:03:00]}  e6 {[%clk 0:02:58]} 3. g3 {[%clk 0:03:00]}  c5 {[%clk 0:02:58]} 4. c4 {[%clk 0:02:59]}  dxc4 {[%clk 0:02:57]} 5. Bg2 {[%clk 0:02:51]}  Nc6 {[%clk 0:02:49]} 6. Qa4 {[%clk 0:02:41]}  cxd4 {[%clk 0:02:48]} 7. Nxd4 {[%clk 0:02:20]}  Qxd4 {[%clk 0:02:47]} 8. Bxc6+ {[%clk 0:02:19]}  Bd7 {[%clk 0:02:47]} 9. Bxd7+ {[%clk 0:02:17]}  Qxd7 {[%clk 0:02:46]} 10. Qxc4 {[%clk 0:02:07]}  Rc8 {[%clk 0:02:46]} 11. Qf4 {[%clk 0:02:07]}  Bd6 {[%clk 0:02:36]} 12. Qd2 {[%clk 0:02:04]}  Nf6 {[%clk 0:02:32]} 13. O-O {[%clk 0:02:03]}  O-O {[%clk 0:02:30]} 14. Nc3 {[%clk 0:02:00]}  Rfd8 {[%clk 0:02:29]} 15. Rd1 {[%clk 0:01:52]}  Qc6 {[%clk 0:02:28]} 16. Qg5 {[%clk 0:01:42]}  Bc5 {[%clk 0:02:22]} 17. Be3 {[%clk 0:01:28]}  Bxe3 {[%clk 0:02:21]} 18. Qxe3 {[%clk 0:01:28]}  a6 {[%clk 0:02:20]} 19. Rac1 {[%clk 0:01:22]}  h6 {[%clk 0:02:17]} 20. h3 {[%clk 0:00:55]}  b5 {[%clk 0:02:09]} 21. Nd5 {[%clk 0:00:41]}  Rxd5 {[%clk 0:02:06]} 22. Rxc6 {[%clk 0:00:36]}  Rxd1+ {[%clk 0:02:05]} 23. Kg2 {[%clk 0:00:37]}  Rxc6 {[%clk 0:02:05]} 24. Qa7 {[%clk 0:00:32]}  Rdc1 {[%clk 0:02:02]} 25. Qa8+ {[%clk 0:00:30]}  Kh7 {[%clk 0:02:01]} 26. Qd8 {[%clk 0:00:30]}  R1c2 {[%clk 0:01:59]} 27. b4 {[%clk 0:00:28]}  Nd5 {[%clk 0:01:53]} 28. a3 {[%clk 0:00:22]}  Rxe2 {[%clk 0:01:51]} 29. Qd7 {[%clk 0:00:16]}  Rcc2 {[%clk 0:01:50]} 0-1


[Site "https://www.chess.com"]

[Event "Titled Tuesday Blitz August 15 Late 2023"]
[White "Kim, Yoon-Young"]
[Black "MFatigue"]
[WhiteFideId "30908779"]
[WhiteElo "2743"]
[BlackElo "2479"]
[Result "0-1"]
[Round "3"]
[TimeControl "180+1"]
[Date "2023.08.15"]
[WhiteClock "0:00:00"]
[BlackClock "0:00:13"]
[Board "64"]

1. d4 {[%clk 0:03:00]}  d5 {[%clk 0:02:59]} 2. Nf3 {[%clk 0:02:59]}  Nf6 {[%clk 0:02:58]} 3. c4 {[%clk 0:02:57]}  c6 {[%clk 0:02:56]} 4. Nc3 {[%clk 0:02:57]}  dxc4 {[%clk 0:02:56]} 5. a4 {[%clk 0:02:57]}  Bf5 {[%clk 0:02:56]} 6. e3 {[%clk 0:02:58]}  e6 {[%clk 0:02:57]} 7. Bxc4 {[%clk 0:02:59]}  Bb4 {[%clk 0:02:57]} 8. O-O {[%clk 0:02:59]}  O-O {[%clk 0:02:57]} 9. Qe2 {[%clk 0:02:57]}  Bg4 {[%clk 0:02:57]} 10. Rd1 {[%clk 0:02:49]}  Nbd7 {[%clk 0:02:56]} 11. h3 {[%clk 0:02:44]}  Bh5 {[%clk 0:02:56]} 12. g4 {[%clk 0:02:43]}  Bg6 {[%clk 0:02:56]} 13. Ne5 {[%clk 0:02:43]}  Nd5 {[%clk 0:02:34]} 14. Nxg6 {[%clk 0:02:34]}  hxg6 {[%clk 0:02:35]} 15. Bd2 {[%clk 0:02:29]}  Bxc3 {[%clk 0:02:21]} 16. bxc3 {[%clk 0:02:30]}  Qh4 {[%clk 0:02:11]} 17. Kg2 {[%clk 0:01:47]}  e5 {[%clk 0:02:06]} 18. e4 {[%clk 0:01:36]}  N5b6 {[%clk 0:02:06]} 19. Bb3 {[%clk 0:01:36]}  a5 {[%clk 0:01:52]} 20. dxe5 {[%clk 0:01:14]}  Nc5 {[%clk 0:01:33]} 21. Bc2 {[%clk 0:01:07]}  Qe7 {[%clk 0:01:17]} 22. f4 {[%clk 0:00:53]}  g5 {[%clk 0:01:18]} 23. Rdb1 {[%clk 0:00:44]}  Nbd7 {[%clk 0:01:14]} 24. fxg5 {[%clk 0:00:31]}  Nxe5 {[%clk 0:01:06]} 25. Be3 {[%clk 0:00:29]}  Ne6 {[%clk 0:00:58]} 26. h4 {[%clk 0:00:27]}  Rfd8 {[%clk 0:00:36]} 27. Rd1 {[%clk 0:00:21]}  Rxd1 {[%clk 0:00:33]} 28. Rxd1 {[%clk 0:00:22]}  Rd8 {[%clk 0:00:33]} 29. Bb3 {[%clk 0:00:19]}  Rxd1 {[%clk 0:00:27]} 30. Qxd1 {[%clk 0:00:20]}  Nc5 {[%clk 0:00:20]} 31. Bc2 {[%clk 0:00:18]}  Nc4 {[%clk 0:00:15]} 32. Bd4 {[%clk 0:00:13]}  Nxe4 {[%clk 0:00:13]} 33. Qd3 {[%clk 0:00:11]}  Ncd6 {[%clk 0:00:13]} 34. Bb3 {[%clk 0:00:08]}  Qd7 {[%clk 0:00:13]} 35. Kh3 {[%clk 0:00:04]}  c5 {[%clk 0:00:13]} 36. Be5 {[%clk 0:00:00]}  Nf2+ {[%clk 0:00:13]} 0-1


[Site "https://www.chess.com"]

[Event "Titled Tuesday Blitz August 15 Late 2023"]
[White "Dinu, Dumitru-Daniel"]
[Black "Timmermans, Mark"]
[WhiteFideId "1208403"]
[BlackFideId "1026399"]
[WhiteElo "2478"]
[BlackElo "2704"]
[Result "1/2-1/2"]
[Round "3"]
[TimeControl "180+1"]
[Date "2023.08.15"]
[WhiteClock "0:00:04"]
[BlackClock "0:00:12"]
[Board "66"]

1. e4 {[%clk 0:03:00]}  e5 {[%clk 0:02:59]} 2. Nf3 {[%clk 0:03:00]}  Nc6 {[%clk 0:02:57]} 3. d4 {[%clk 0:03:00]}  exd4 {[%clk 0:02:58]} 4. Nxd4 {[%clk 0:03:00]}  Nf6 {[%clk 0:02:58]} 5. Nc3 {[%clk 0:02:58]}  Bb4 {[%clk 0:02:58]} 6. Nxc6 {[%clk 0:02:58]}  bxc6 {[%clk 0:02:58]} 7. Bd3 {[%clk 0:02:58]}  d5 {[%clk 0:02:58]} 8. exd5 {[%clk 0:02:57]}  O-O {[%clk 0:02:58]} 9. O-O {[%clk 0:02:57]}  cxd5 {[%clk 0:02:58]} 10. Bg5 {[%clk 0:02:54]}  c6 {[%clk 0:02:58]} 11. Qf3 {[%clk 0:02:54]}  Be7 {[%clk 0:02:58]} 12. h3 {[%clk 0:02:53]}  Rb8 {[%clk 0:02:57]} 13. b3 {[%clk 0:02:52]}  Re8 {[%clk 0:02:57]} 14. Na4 {[%clk 0:02:51]}  h6 {[%clk 0:02:57]} 15. Bf4 {[%clk 0:02:50]}  Rb4 {[%clk 0:02:57]} 16. a3 {[%clk 0:02:47]}  Rb7 {[%clk 0:02:56]} 17. Rfe1 {[%clk 0:02:44]}  Be6 {[%clk 0:02:56]} 18. Ba6 {[%clk 0:02:36]}  Rd7 {[%clk 0:02:55]} 19. b4 {[%clk 0:02:27]}  Bf5 {[%clk 0:02:39]} 20. Bd3 {[%clk 0:02:24]}  Be4 {[%clk 0:02:37]} 21. Qd1 {[%clk 0:02:14]}  Bf8 {[%clk 0:02:22]} 22. f3 {[%clk 0:02:11]}  Bxd3 {[%clk 0:02:20]} 23. Qxd3 {[%clk 0:02:10]}  Rde7 {[%clk 0:02:20]} 24. Rxe7 {[%clk 0:02:05]}  Qxe7 {[%clk 0:02:21]} 25. Bd2 {[%clk 0:01:55]}  Qd6 {[%clk 0:02:01]} 26. Re1 {[%clk 0:01:49]}  Rxe1+ {[%clk 0:02:01]} 27. Bxe1 {[%clk 0:01:50]}  Nd7 {[%clk 0:01:58]} 28. Bf2 {[%clk 0:01:48]}  Ne5 {[%clk 0:01:40]} 29. Qe2 {[%clk 0:01:37]}  Nc4 {[%clk 0:01:19]} 30. Bxa7 {[%clk 0:01:26]}  Nxa3 {[%clk 0:01:02]} 31. Bc5 {[%clk 0:01:24]}  Qe6 {[%clk 0:00:59]} 32. Qxe6 {[%clk 0:01:11]}  fxe6 {[%clk 0:01:00]} 33. Bxf8 {[%clk 0:01:12]}  Kxf8 {[%clk 0:01:01]} 34. c3 {[%clk 0:01:09]}  Ke7 {[%clk 0:01:00]} 35. Kf2 {[%clk 0:01:09]}  Kd6 {[%clk 0:00:59]} 36. Ke3 {[%clk 0:01:04]}  e5 {[%clk 0:00:58]} 37. Nc5 {[%clk 0:01:01]}  d4+ {[%clk 0:00:36]} 38. cxd4 {[%clk 0:00:53]}  Nc2+ {[%clk 0:00:37]} 39. Ke4 {[%clk 0:00:48]}  Nxd4 {[%clk 0:00:36]} 40. Nd3 {[%clk 0:00:46]}  Nc2 {[%clk 0:00:36]} 41. g4 {[%clk 0:00:37]}  g5 {[%clk 0:00:36]} 42. Nxe5 {[%clk 0:00:31]}  Nxb4 {[%clk 0:00:35]} 43. Nf7+ {[%clk 0:00:31]}  Ke6 {[%clk 0:00:34]} 44. Nxh6 {[%clk 0:00:26]}  Nd5 {[%clk 0:00:35]} 45. Nf5 {[%clk 0:00:22]}  c5 {[%clk 0:00:31]} 46. Ng7+ {[%clk 0:00:19]}  Kd6 {[%clk 0:00:31]} 47. Ne8+ {[%clk 0:00:19]}  Kc6 {[%clk 0:00:31]} 48. Ng7 {[%clk 0:00:14]}  c4 {[%clk 0:00:24]} 49. Kd4 {[%clk 0:00:13]}  c3 {[%clk 0:00:25]} 50. Kd3 {[%clk 0:00:13]}  Kd6 {[%clk 0:00:24]} 51. Nf5+ {[%clk 0:00:13]}  Ke5 {[%clk 0:00:25]} 52. Nd4 {[%clk 0:00:11]}  Kf4 {[%clk 0:00:11]} 53. Ne6+ {[%clk 0:00:05]}  Kxf3 {[%clk 0:00:11]} 54. Nxg5+ {[%clk 0:00:05]}  Kg3 {[%clk 0:00:12]} 55. Ne4+ {[%clk 0:00:05]}  Kxh3 {[%clk 0:00:12]} 56. g5 {[%clk 0:00:05]}  Kg4 {[%clk 0:00:12]} 57. Nf6+ {[%clk 0:00:03]}  Kxg5 {[%clk 0:00:11]} 58. Nxd5 {[%clk 0:00:04]}  c2 {[%clk 0:00:12]} 59. Kxc2 {[%clk 0:00:04]} 1/2-1/2


[Site "https://www.chess.com"]

[Event "Titled Tuesday Blitz August 15 Late 2023"]
[White "Alex_Sahakyan2006"]
[Black "Jovic, Stanoje"]
[BlackFideId "905020"]
[WhiteElo "2697"]
[BlackElo "2477"]
[Result "0-1"]
[Round "3"]
[TimeControl "180+1"]
[Date "2023.08.15"]
[WhiteClock "0:01:12"]
[BlackClock "0:01:45"]
[Board "67"]

1. e4 {[%clk 0:03:00]}  c6 {[%clk 0:02:59]} 2. d4 {[%clk 0:02:56]}  d5 {[%clk 0:02:59]} 3. exd5 {[%clk 0:02:57]}  cxd5 {[%clk 0:02:59]} 4. Bd3 {[%clk 0:02:58]}  Nc6 {[%clk 0:02:59]} 5. c3 {[%clk 0:02:58]}  e5 {[%clk 0:02:59]} 6. dxe5 {[%clk 0:02:57]}  Nxe5 {[%clk 0:03:00]} 7. Nf3 {[%clk 0:02:57]}  Nxd3+ {[%clk 0:03:00]} 8. Qxd3 {[%clk 0:02:58]}  Nf6 {[%clk 0:03:00]} 9. O-O {[%clk 0:02:59]}  Be7 {[%clk 0:03:00]} 10. Be3 {[%clk 0:02:57]}  O-O {[%clk 0:02:59]} 11. Nbd2 {[%clk 0:02:57]}  Bg4 {[%clk 0:02:52]} 12. h3 {[%clk 0:02:57]}  Bh5 {[%clk 0:02:52]} 13. Nd4 {[%clk 0:02:57]}  Bg6 {[%clk 0:02:51]} 14. Qb5 {[%clk 0:02:56]}  a6 {[%clk 0:02:47]} 15. Qb3 {[%clk 0:02:55]}  Qd7 {[%clk 0:02:40]} 16. N2f3 {[%clk 0:02:48]}  Bd6 {[%clk 0:02:39]} 17. Rfe1 {[%clk 0:02:45]}  Rfe8 {[%clk 0:02:38]} 18. a4 {[%clk 0:02:30]}  h6 {[%clk 0:02:37]} 19. Kh1 {[%clk 0:02:28]}  Re7 {[%clk 0:02:33]} 20. Red1 {[%clk 0:02:25]}  Rae8 {[%clk 0:02:31]} 21. Kg1 {[%clk 0:02:17]}  Bb8 {[%clk 0:02:30]} 22. a5 {[%clk 0:01:49]}  Bh5 {[%clk 0:02:17]} 23. Re1 {[%clk 0:01:38]}  Ne4 {[%clk 0:02:14]} 24. Qa4 {[%clk 0:01:25]}  Qc7 {[%clk 0:02:06]} 25. Qb3 {[%clk 0:01:19]}  Ng5 {[%clk 0:01:57]} 26. Bxg5 {[%clk 0:01:15]}  Rxe1+ {[%clk 0:01:49]} 27. Rxe1 {[%clk 0:01:10]}  Rxe1+ {[%clk 0:01:46]} 28. Nxe1 {[%clk 0:01:11]}  Qh2+ {[%clk 0:01:45]} 29. Kf1 {[%clk 0:01:12]}  Qh1# {[%clk 0:01:45]} 0-1


[Site "https://www.chess.com"]